fUST/lending_fUST_20241205
["ID","MTS","AMOUNT","RATE_DAILY","PERIOD"]
[344284620,1733328460060,-500.0,0.00024931,7]
[344284621,1733328460082,-500.0,0.00024931,7]
[344284622,1733328460104,-500.0,0.00024931,7]
[344284623,1733328460126,-500.0,0.00024931,7]
[344284624,1733328460147,-500.0,0.00024931,7]
[344284625,1733328460168,-500.0,0.00024931,7]
[344284626,1733328460190,-500.0,0.00024931,7]
[344284627,1733328460212,-527.50217421,0.00024931,7]
[344284628,1733328460236,-500.0,0.00024931,7]
[344284629,1733328460257,-500.0,0.00024931,7]
[344284630,1733328460280,-500.0,0.00024931,7]
[344284631,1733328460301,-500.0,0.00024931,7]
[344284632,1733328460324,-500.0,0.00024931,7]
[344284633,1733328460344,-583.90010964,0.00024931,7]
[344284634,1733328460367,-500.0,0.00024931,7]
[344284635,1733328460389,-500.0,0.00024931,7]
[344284636,1733328460411,-500.0,0.00024931,7]
[344284637,1733328460432,-500.0,0.00024931,7]
[344284638,1733328460454,-151.0,0.00024931,7]
[344284639,1733328460477,-500.0,0.00024931,7]
[344284640,1733328460499,-500.0,0.00024931,7]
[344284641,1733328460522,-500.0,0.00024931,7]
[344284642,1733328460543,-500.0,0.00024931,7]
[344284643,1733328460564,-500.0,0.00024931,7]
[344284644,1733328460585,-500.0,0.00024931,7]
[344284645,1733328460610,-512.75298231,0.00024931,7]
[344284646,1733328460631,-500.0,0.00024931,7]
[344284647,1733328460652,-500.0,0.00024931,7]
[344284648,1733328460673,-704.12,0.00024931,7]
[344284649,1733328460694,-500.0,0.00024931,7]
[344284650,1733328460714,-500.0,0.00024931,7]
[344284651,1733328460734,-500.0,0.00024931,7]
[344284652,1733328460757,-151.0,0.00024931,7]
[344284653,1733328460778,-500.0,0.00024931,7]
[344284654,1733328460800,-500.0,0.00024931,7]
[344284655,1733328460825,-500.0,0.00024931,7]
[344284656,1733328460847,-302.72991693,0.00024931,7]
[344284657,1733328460870,-3146.31,0.00024931,7]
[344284658,1733328460890,-500.0,0.00024931,7]
[344284659,1733328460911,-529.99364696,0.00024931,7]
[344284660,1733328460935,-500.0,0.00024931,7]
[344284661,1733328460956,-500.0,0.00024931,7]
[344284662,1733328460977,-500.0,0.00024931,7]
[344284663,1733328460999,-500.0,0.00024931,7]
[344284664,1733328461103,-500.0,0.00024931,7]
[344284665,1733328461130,-432.7,0.00024931,7]
[344284666,1733328461153,-7678.92,0.00024931,7]
[344284667,1733328461174,-500.0,0.00024931,7]
[344284668,1733328461196,-506.57359398,0.00024931,7]
[344284669,1733328461218,-500.0,0.00024931,7]
[344284670,1733328461240,-594.27,0.00024931,7]
[344284671,1733328461260,-500.0,0.00024931,7]
[344284672,1733328461281,-500.0,0.00024931,7]
[344284673,1733328461302,-500.0,0.00024931,7]
[344284674,1733328461325,-500.0,0.00024931,7]
[344284675,1733328461346,-500.0,0.00024931,7]
[344284676,1733328461369,-314.4796715,0.00024931,7]
[344284677,1733328496174,-500.0,0.00024657,7]
[344284678,1733328496198,-151.0,0.00024657,7]
[344284679,1733328496221,-500.0,0.00024657,7]
[344284680,1733328496248,-500.0,0.00024657,7]
[344284681,1733328496270,-365.51995247,0.00024657,7]
[344284682,1733328496293,-500.0,0.00024657,7]
[344284683,1733328496315,-500.0,0.00024657,7]
[344284684,1733328496338,-500.0,0.00024673,2]
[344284685,1733328496360,-300.0,0.0002493,2]
[344284686,1733328496384,-185.5203285,0.00024931,7]
[344284687,1733328496408,-500.0,0.00024931,7]
[344284688,1733328496431,-730.06,0.00024931,7]
[344284689,1733328496453,-151.0,0.00024931,7]
[344284690,1733328496476,-151.0,0.00024931,7]
[344284691,1733328496499,-500.0,0.00024931,7]
[344284692,1733328496523,-1244.1,0.00024931,7]
[344284693,1733328496544,-500.0,0.00024931,7]
[344284694,1733328496567,-500.0,0.00024931,7]
[344284695,1733328496590,-151.0,0.00024931,7]
[344284696,1733328496613,-151.0,0.00024931,7]
[344284697,1733328496638,-315.74218992,0.00024931,7]
[344284698,1733328496661,-500.0,0.00024931,7]
[344284699,1733328496683,-500.0,0.00024931,7]
[344284700,1733328496706,-500.0,0.00024931,7]
[344284701,1733328496728,-526.37004264,0.00024931,7]
[344284702,1733328496750,-500.0,0.00024931,7]
[344284703,1733328496772,-501.60935723,0.00024931,7]
[344284704,1733328496795,-3625.4,0.00024931,7]
[344284705,1733328496817,-500.0,0.00024931,7]
[344284706,1733328496842,-500.0,0.00024931,7]
[344284707,1733328496864,-500.0,0.00024931,7]
[344284708,1733328496887,-500.0,0.00024931,7]
[344284709,1733328496911,-1810.78,0.00024931,7]
[344284710,1733328496932,-521.70100495,0.00024931,7]
[344284711,1733328496954,-550.71366695,0.00024931,7]
[344284712,1733328496976,-500.0,0.00024931,7]
[344284713,1733328496998,-151.0,0.00024931,7]
[344284714,1733328497022,-500.0,0.00024931,7]
[344284715,1733328497043,-500.0,0.00024931,7]
[344284716,1733328497068,-1009.60799982,0.00024931,7]
[344284717,1733328497091,-504.48340195,0.00024931,7]
[344284718,1733328497115,-695.65,0.00024931,7]
[344284719,1733328497139,-500.0,0.00024931,7]
[344284720,1733328497163,-500.0,0.00024931,7]
[344284721,1733328497185,-500.0,0.00024931,7]
[344284722,1733328497209,-500.0,0.00024931,7]
[344284723,1733328497231,-500.0,0.00024931,7]
[344284724,1733328497254,-500.0,0.00024931,7]
[344284725,1733328497278,-824.61,0.00024931,7]
[344284726,1733328497300,-500.0,0.00024931,7]
[344284727,1733328497323,-520.3,0.00024931,7]
[344284728,1733328497344,-500.0,0.00024931,7]
[344284729,1733328497365,-500.0,0.00024931,7]
[344284730,1733328497387,-500.0,0.00024931,7]
[344284731,1733328497410,-527.85,0.00024931,7]
[344284732,1733328497432,-500.0,0.00024931,7]
[344284733,1733328497458,-500.0,0.00024931,7]
[344284734,1733328497479,-500.0,0.00024931,7]
[344284735,1733328497499,-151.0,0.00024931,7]
[344284736,1733328497522,-154.885591,0.00024931,7]
[344284737,1733328497544,-500.0,0.00024931,7]
[344284738,1733328497566,-500.0,0.00024931,7]
[344284739,1733328497588,-500.0,0.00024931,7]
[344284740,1733328497611,-500.0,0.00024931,7]
[344284741,1733328497725,-151.0,0.00024931,7]
[344284742,1733328497749,-151.0,0.00024931,7]
[344284743,1733328497771,-500.0,0.00024931,7]
[344284744,1733328497793,-500.0,0.00024931,7]
[344284745,1733328497817,-500.0,0.00024931,7]
[344284746,1733328497840,-151.0,0.00024931,7]
[344284747,1733328497862,-151.0,0.00024931,7]
[344284748,1733328497886,-500.0,0.00024931,7]
[344284749,1733328497910,-500.0,0.00024931,7]
[344284750,1733328497932,-151.0,0.00024931,7]
[344284751,1733328497954,-151.0,0.00024931,7]
[344284752,1733328497982,-500.0,0.00024931,7]
[344284753,1733328498004,-500.0,0.00024931,7]
[344284754,1733328498027,-500.0,0.00024931,7]
[344284755,1733328498051,-500.0,0.00024931,7]
[344284756,1733328498079,-500.0,0.00024931,7]
[344284757,1733328498103,-500.0,0.00024931,7]
[344284758,1733328498132,-1222.09646457,0.00024931,7]
[344284762,1733328580433,-196.60865103,0.00024556,2]
[344284763,1733328580459,-300.0,0.00024656,2]
[344284764,1733328580486,-300.0,0.00024656,2]
[344284765,1733328580509,-500.0,0.00024657,7]
[344284766,1733328580535,-500.0,0.00024657,7]
[344284767,1733328580559,-544.74,0.00024657,7]
[344284768,1733328580585,-7039.01,0.00024657,7]
[344284769,1733328580609,-500.0,0.00024657,7]
[344284770,1733328580632,-500.0,0.00024657,7]
[344284771,1733328580656,-500.0,0.00024657,7]
[344284772,1733328580680,-500.0,0.00024657,7]
[344284773,1733328580704,-500.0,0.00024657,7]
[344284774,1733328580731,-1659.88,0.00024657,7]
[344284775,1733328580757,-1140.43,0.00024657,7]
[344284776,1733328580781,-167.995017,0.00024657,7]
[344284777,1733328580804,-500.12047047,0.00024657,7]
[344284778,1733328580828,-500.0,0.00024657,7]
[344284779,1733328580852,-500.0,0.00024657,7]
[344284780,1733328580876,-167.995017,0.00024657,7]
[344284781,1733328580899,-644.18166757,0.00024657,7]
[344284782,1733328580923,-509.58148853,0.00024657,7]
[344284783,1733328580947,-151.0,0.00024657,7]
[344284784,1733328580973,-500.0,0.00024657,7]
[344284785,1733328580996,-500.0,0.00024657,7]
[344284786,1733328581020,-500.0,0.00024657,7]
[344284787,1733328581044,-500.0,0.0002493,7]
[344284788,1733328581068,-500.0,0.0002493,7]
[344284789,1733328581094,-500.0,0.0002493,7]
[344284790,1733328581135,-3323.28,0.0002493,7]
[344284791,1733328581163,-637.68,0.0002493,7]
[344284792,1733328581331,-755.89,0.0002493,7]
[344284793,1733328581360,-8080.03353543,0.00024931,7]
[344284794,1733328581385,-500.0,0.00024931,7]
[344284795,1733328581409,-500.0,0.00024931,7]
[344284796,1733328581434,-621.03037106,0.00024931,7]
[344284797,1733328581459,-500.0,0.00024931,7]
[344284798,1733328581487,-500.0,0.00024931,7]
[344284799,1733328581510,-500.0,0.00024931,7]
[344284800,1733328581535,-500.0,0.00024931,7]
[344284801,1733328581561,-500.0,0.00024931,7]
[344284802,1733328581585,-500.0,0.00024931,7]
[344284803,1733328581610,-500.0,0.00024931,7]
[344284804,1733328581634,-151.0,0.00024931,7]
[344284805,1733328581658,-151.0,0.00024931,7]
[344284806,1733328581683,-502.9811249,0.00024931,7]
[344284807,1733328581709,-500.0,0.00024931,7]
[344284808,1733328581735,-500.0,0.00024931,7]
[344284809,1733328581758,-500.0,0.00024931,7]
[344284810,1733328581783,-500.0,0.00024931,7]
[344284811,1733328581807,-500.0,0.00024931,7]
[344284812,1733328581831,-544.74,0.00024931,7]
[344284813,1733328581856,-7039.01,0.00024931,7]
[344284814,1733328581879,-500.0,0.00024931,7]
[344284815,1733328581902,-500.0,0.00024931,7]
[344284816,1733328581927,-500.0,0.00024931,7]
[344284817,1733328581951,-500.0,0.00024931,7]
[344284818,1733328581979,-500.0,0.00024931,7]
[344284819,1733328582003,-1659.88,0.00024931,7]
[344284820,1733328582028,-1140.43,0.00024931,7]
[344284821,1733328582051,-167.995017,0.00024931,7]
[344284822,1733328582078,-167.995017,0.00024931,7]
[344284823,1733328582107,-500.0,0.00024931,7]
[344284824,1733328582132,-500.0,0.00024931,7]
[344284825,1733328582158,-167.995017,0.00024931,7]
[344284826,1733328582184,-167.995017,0.00024931,7]
[344284827,1733328582207,-226.971404,0.00024931,7]
[344284828,1733328582234,-500.0,0.00024931,7]
[344284829,1733328582257,-500.0,0.00024931,7]
[344284830,1733328582281,-500.0,0.00024931,7]
[344284831,1733328582304,-411.87766371,0.00025105,2]
[344284832,1733328582328,-500.0,0.00025204,2]
[344284833,1733328582350,-500.0,0.00025204,2]
[344284834,1733328582374,-500.0,0.00025204,2]
[344284835,1733328582398,-500.0,0.00025204,2]
[344284836,1733328582421,-500.0,0.00025204,2]
[344284837,1733328582444,-500.0,0.00025204,2]
[344284838,1733328582471,-500.0,0.00025204,2]
[344284839,1733328582494,-500.0,0.00025204,2]
[344284840,1733328582517,-500.0,0.00025204,2]
[344284841,1733328582541,-500.0,0.00025204,2]
[344284842,1733328582565,-500.0,0.00025204,2]
[344284843,1733328582589,-560.31723144,0.00025204,2]
[344284844,1733328582613,-500.0,0.00025204,2]
[344284845,1733328582635,-500.0,0.00025204,2]
[344284846,1733328582658,-500.0,0.00025204,2]
[344284847,1733328582683,-500.0,0.00025204,7]
[344284848,1733328582707,-500.0,0.00025204,7]
[344284849,1733328582731,-500.0,0.00025204,7]
[344284850,1733328582755,-3323.28,0.00025204,7]
[344284851,1733328582780,-637.68,0.00025204,7]
[344284852,1733328582804,-755.89,0.00025204,7]
[344284853,1733328582829,-41874.60434663,0.00025205,2]
[344284854,1733328582852,-500.0,0.00025205,7]
[344284855,1733328582874,-246.20558505,0.00025205,7]
[344284856,1733328582896,-500.0,0.00025205,7]
[344284857,1733328582920,-500.0,0.00025205,7]
[344284858,1733328582944,-180.05603968,0.00025205,7]
[344284859,1733328582969,-500.0,0.00025205,7]
[344284860,1733328582992,-500.0,0.00025205,7]
[344284861,1733328583015,-645.63747554,0.00025205,7]
[344284862,1733328583039,-649.52961552,0.00025205,7]
[344284863,1733328583062,-520.20597458,0.00025205,7]
[344284864,1733328583086,-500.0,0.00025205,7]
[344284865,1733328583111,-471.86134432,0.00025205,7]
[344284866,1733328583135,-500.0,0.00025205,7]
[344284867,1733328583162,-500.0,0.00025205,7]
[344284868,1733328583188,-500.0,0.00025205,7]
[344284869,1733328583214,-500.0,0.00025205,7]
[344284870,1733328583244,-500.0,0.00025205,7]
[344284871,1733328583268,-500.0,0.00025205,7]
[344284872,1733328583293,-500.0,0.00025205,7]
[344284873,1733328583317,-500.0,0.00025205,7]
[344284874,1733328583340,-500.0,0.00025205,7]
[344284875,1733328583363,-500.0,0.00025205,7]
[344284876,1733328583384,-502.61774956,0.00025205,7]
[344284877,1733328583407,-500.0,0.00025205,7]
[344284878,1733328583431,-500.0,0.00025205,7]
[344284879,1733328583454,-197.10571182,0.00025205,7]
[344284880,1733328583478,-151.60894594,0.00025205,7]
[344284881,1733328583501,-500.0,0.00025205,7]
[344284882,1733328583525,-641.61433354,0.00025205,7]
[344284883,1733328583548,-500.0,0.00025205,7]
[344284884,1733328583571,-500.0,0.00025205,7]
[344284885,1733328583595,-601.92603135,0.00025205,7]
[344284886,1733328583618,-500.0,0.00025205,7]
[344284887,1733328583642,-500.0,0.00025205,7]
[344284888,1733328583666,-503.68106947,0.00025205,7]
[344284889,1733328583690,-500.0,0.00025205,7]
[344284890,1733328583713,-500.0,0.00025205,7]
[344284891,1733328583761,-500.0,0.00025205,7]
[344284892,1733328583786,-398.77617636,0.00025205,7]
[344284893,1733328583810,-500.0,0.00025205,7]
[344284894,1733328583834,-500.0,0.00025205,7]
[344284895,1733328583856,-643.10803236,0.00025205,7]
[344284896,1733328583880,-500.0,0.00025205,7]
[344284897,1733328583902,-500.0,0.00025205,7]
[344284898,1733328583925,-500.0,0.00025205,7]
[344284899,1733328583948,-500.0,0.00025205,7]
[344284900,1733328583973,-500.0,0.00025205,7]
[344284901,1733328583997,-500.0,0.00025205,7]
[344284902,1733328584021,-500.0,0.00025205,7]
[344284903,1733328584045,-500.0,0.00025205,7]
[344284904,1733328584068,-500.0,0.00025205,7]
[344284905,1733328584094,-500.0,0.00025205,7]
[344284906,1733328584119,-704.12,0.00025205,7]
[344284907,1733328584273,-389.66650941,0.00025205,7]
[344284908,1733328584303,-151.0,0.00025205,7]
[344284909,1733328584325,-500.0,0.00025205,7]
[344284910,1733328584346,-500.0,0.00025205,7]
[344284911,1733328584369,-283.92,0.00025205,7]
[344284912,1733328584392,-500.0,0.00025205,7]
[344284913,1733328584417,-500.0,0.00025205,7]
[344284914,1733328584439,-500.0,0.00025205,7]
[344284915,1733328584460,-500.0,0.00025205,7]
[344284916,1733328584486,-515.54178256,0.00025205,7]
[344284917,1733328584508,-481.50307558,0.00025205,7]
[344284918,1733328584530,-500.0,0.00025205,7]
[344284919,1733328584551,-220.53406475,0.00025205,7]
[344284920,1733328584573,-730.06,0.00025205,7]
[344284921,1733328584595,-151.0,0.00025205,7]
[344284922,1733328584616,-500.0,0.00025205,7]
[344284923,1733328584638,-151.0,0.00025205,7]
[344284924,1733328584662,-500.0,0.00025205,7]
[344284925,1733328584686,-500.0,0.00025205,7]
[344284926,1733328584710,-500.0,0.00025205,7]
[344284927,1733328584736,-500.0,0.00025205,7]
[344284928,1733328584759,-500.0,0.00025205,7]
[344284929,1733328584780,-500.0,0.00025205,7]
[344284930,1733328584802,-500.0,0.00025205,7]
[344284931,1733328584825,-500.0,0.00025205,7]
[344284932,1733328584847,-500.0,0.00025205,7]
[344284933,1733328584870,-500.0,0.00025205,7]
[344284934,1733328584893,-500.0,0.00025205,7]
[344284935,1733328584916,-500.0,0.00025205,7]
[344284936,1733328584940,-520.3,0.00025205,7]
[344284937,1733328584962,-500.0,0.00025205,7]
[344284938,1733328584987,-370.7932444,0.00025205,7]
[344284939,1733328585008,-500.0,0.00025205,7]
[344284940,1733328585030,-527.85,0.00025205,7]
[344284941,1733328585052,-500.0,0.00025205,7]
[344284942,1733328585075,-209.4468625,0.00025205,7]
[344284943,1733328585099,-500.0,0.00025205,7]
[344284944,1733328585122,-500.0,0.00025205,7]
[344284945,1733328585145,-500.0,0.00025205,7]
[344284946,1733328585167,-500.0,0.00025205,7]
[344284947,1733328585193,-500.0,0.00025205,7]
[344284948,1733328585215,-151.0,0.00025205,7]
[344284949,1733328585241,-500.0,0.00025205,7]
[344284950,1733328585264,-500.0,0.00025205,7]
[344284951,1733328585287,-433.84986478,0.00025205,7]
[344284952,1733328585311,-172.257779,0.00025205,7]
[344284953,1733328585335,-500.0,0.00025205,7]
[344284954,1733328585359,-500.0,0.00025205,7]
[344284955,1733328585381,-500.0,0.00025205,7]
[344284956,1733328585405,-500.0,0.00025205,7]
[344284957,1733328585429,-500.0,0.00025205,7]
[344284958,1733328585452,-513.2312375,0.00025205,7]
[344284959,1733328585476,-9302.13,0.00025205,7]
[344284960,1733328585498,-595.74515686,0.00025205,7]
[344284961,1733328585520,-500.0,0.00025205,7]
[344284962,1733328585543,-500.0,0.00025205,7]
[344284963,1733328585566,-500.0,0.00025205,7]
[344284964,1733328585588,-500.0,0.00025205,7]
[344284965,1733328585611,-500.0,0.00025205,7]
[344284966,1733328585633,-514.86827923,0.00025205,7]
[344284967,1733328585661,-500.0,0.00025205,7]
[344284968,1733328585687,-151.0,0.00025205,7]
[344284969,1733328585709,-500.0,0.00025205,7]
[344284970,1733328585736,-500.0,0.00025205,7]
[344284971,1733328585759,-500.0,0.00025205,7]
[344284972,1733328585782,-500.0,0.00025205,7]
[344284973,1733328585804,-500.0,0.00025205,7]
[344284974,1733328585829,-544.74,0.00025205,7]
[344284975,1733328585855,-7039.01,0.00025205,7]
[344284976,1733328585876,-500.0,0.00025205,7]
[344284977,1733328585900,-500.0,0.00025205,7]
[344284978,1733328585926,-500.0,0.00025205,7]
[344284979,1733328585948,-500.0,0.00025205,7]
[344284980,1733328585974,-500.0,0.00025205,7]
[344284981,1733328585998,-1659.88,0.00025205,7]
[344284982,1733328586020,-1140.43,0.00025205,7]
[344284983,1733328586043,-167.995017,0.00025205,7]
[344284984,1733328586066,-500.0,0.00025205,7]
[344284985,1733328586095,-500.0,0.00025205,7]
[344284986,1733328586120,-167.995017,0.00025205,7]
[344284987,1733328586146,-500.0,0.00025205,7]
[344284988,1733328586171,-500.0,0.00025205,7]
[344284989,1733328586195,-500.0,0.00025205,7]
[344284990,1733328586220,-227.81306453,0.00025242,2]
[344284991,1733328586249,-601.87608684,0.00025391,2]
[344284992,1733328586276,-500.0,0.00025478,7]
[344284993,1733328586300,-500.0,0.00025478,7]
[344284994,1733328586323,-346.7175006,0.00025478,2]
[344284995,1733328586346,-500.0,0.00025478,7]
[344284996,1733328586369,-3323.28,0.00025478,7]
[344284997,1733328586390,-637.68,0.00025478,7]
[344284998,1733328586414,-755.89,0.00025478,7]
[344284999,1733328586437,-501.89775724,0.00025479,7]
[344285000,1733328586460,-500.0,0.00025479,7]
[344285001,1733328586486,-502.01859776,0.00025479,7]
[344285002,1733328586507,-500.0,0.00025479,7]
[344285003,1733328586528,-198.98067689,0.00025479,7]
[344285004,1733328586550,-500.0,0.00025479,7]
[344285005,1733328586572,-500.0,0.00025479,7]
[344285006,1733328586593,-596.76136661,0.00025479,7]
[344285007,1733328586615,-500.0,0.00025479,7]
[344285008,1733328586636,-500.0,0.00025479,7]
[344285009,1733328586659,-500.0,0.00025479,7]
[344285010,1733328586684,-500.0,0.00025479,7]
[344285011,1733328586706,-500.0,0.00025479,7]
[344285012,1733328586732,-500.0,0.00025479,7]
[344285013,1733328586753,-500.0,0.00025479,7]
[344285014,1733328586775,-500.0,0.00025479,7]
[344285015,1733328586797,-500.0,0.00025479,7]
[344285016,1733328586819,-508.76885545,0.00025479,7]
[344285017,1733328586841,-505.24592429,0.00025479,7]
[344285018,1733328586978,-500.0,0.00025479,7]
[344285019,1733328587001,-500.0,0.00025479,7]
[344285020,1733328587023,-500.0,0.00025479,7]
[344285021,1733328587046,-500.0,0.00025479,7]
[344285022,1733328587071,-625.754275,0.00025479,7]
[344285023,1733328587098,-500.0,0.00025479,7]
[344285024,1733328587124,-625.754275,0.00025479,7]
[344285025,1733328587150,-513.60123901,0.00025479,7]
[344285026,1733328587176,-500.0,0.00025479,7]
[344285027,1733328587202,-500.0,0.00025479,7]
[344285028,1733328587229,-255.71419845,0.00025479,7]
[344285029,1733328587255,-515.80901652,0.00025479,7]
[344285030,1733328587280,-500.0,0.00025479,7]
[344285031,1733328587307,-500.0,0.00025479,7]
[344285032,1733328587333,-500.0,0.00025479,7]
[344285033,1733328587359,-500.0,0.00025479,7]
[344285034,1733328587383,-500.0,0.00025479,7]
[344285035,1733328587408,-500.0,0.00025479,7]
[344285036,1733328587431,-500.0,0.00025479,7]
[344285037,1733328587455,-500.0,0.00025479,7]
[344285038,1733328587482,-500.0,0.00025479,7]
[344285039,1733328587505,-704.12,0.00025479,7]
[344285040,1733328587528,-151.0,0.00025479,7]
[344285041,1733328587551,-500.0,0.00025479,7]
[344285042,1733328587573,-500.0,0.00025479,7]
[344285043,1733328587598,-500.0,0.00025479,7]
[344285044,1733328587620,-500.0,0.00025479,7]
[344285045,1733328587642,-500.0,0.00025479,7]
[344285046,1733328587664,-500.0,0.00025479,7]
[344285047,1733328587688,-500.0,0.00025479,7]
[344285048,1733328587711,-730.06,0.00025479,7]
[344285049,1733328587736,-151.0,0.00025479,7]
[344285050,1733328587758,-500.0,0.00025479,7]
[344285051,1733328587781,-182.750804,0.00025479,7]
[344285052,1733328587804,-500.0,0.00025479,7]
[344285053,1733328587826,-500.0,0.00025479,7]
[344285054,1733328587850,-500.0,0.00025479,7]
[344285055,1733328587875,-500.0,0.00025479,7]
[344285056,1733328587898,-500.0,0.00025479,7]
[344285057,1733328587921,-500.0,0.00025479,7]
[344285058,1733328587943,-500.0,0.00025479,7]
[344285059,1733328587971,-500.0,0.00025479,7]
[344285060,1733328587996,-500.0,0.00025479,7]
[344285061,1733328588019,-500.0,0.00025479,7]
[344285062,1733328588043,-500.0,0.00025479,7]
[344285063,1733328588066,-520.3,0.00025479,7]
[344285064,1733328588089,-500.0,0.00025479,7]
[344285065,1733328588115,-500.0,0.00025479,7]
[344285066,1733328588137,-527.85,0.00025479,7]
[344285067,1733328588159,-500.0,0.00025479,7]
[344285068,1733328588184,-500.0,0.00025479,7]
[344285069,1733328588208,-500.0,0.00025479,7]
[344285070,1733328588234,-632.2160873,0.00025479,7]
[344285071,1733328588257,-500.0,0.00025479,7]
[344285072,1733328588279,-500.0,0.00025479,7]
[344285073,1733328588301,-500.0,0.00025479,7]
[344285074,1733328588324,-151.0,0.00025479,7]
[344285075,1733328588347,-500.0,0.00025479,7]
[344285076,1733328588370,-500.0,0.00025479,7]
[344285077,1733328588392,-640.83557458,0.00025479,7]
[344285078,1733328588415,-500.0,0.00025479,7]
[344285079,1733328588438,-500.0,0.00025479,7]
[344285080,1733328588459,-500.0,0.00025479,7]
[344285081,1733328588486,-9302.13,0.00025479,7]
[344285082,1733328588508,-500.0,0.00025479,7]
[344285083,1733328588531,-500.0,0.00025479,7]
[344285084,1733328588554,-511.17557183,0.00025479,7]
[344285085,1733328588576,-500.0,0.00025479,7]
[344285086,1733328588598,-536.52768851,0.00025479,7]
[344285087,1733328588621,-500.0,0.00025479,7]
[344285088,1733328588645,-151.0,0.00025479,7]
[344285089,1733328588668,-234.153574,0.00025479,7]
[344285090,1733328588691,-190.44624996,0.00025479,7]
[344285091,1733328588713,-500.0,0.00025479,7]
[344285092,1733328588744,-500.0,0.00025479,7]
[344285093,1733328588765,-500.0,0.00025479,7]
[344285094,1733328588791,-500.0,0.00025479,7]
[344285095,1733328588814,-544.74,0.00025479,7]
[344285096,1733328588838,-7039.01,0.00025479,7]
[344285097,1733328588860,-592.68159283,0.00025479,7]
[344285098,1733328588882,-500.0,0.00025479,7]
[344285099,1733328588905,-500.0,0.00025479,7]
[344285100,1733328588926,-500.0,0.00025479,7]
[344285101,1733328588949,-500.0,0.00025479,7]
[344285102,1733328588974,-1659.88,0.00025479,7]
[344285103,1733328588997,-1140.43,0.00025479,7]
[344285104,1733328589020,-167.995017,0.00025479,7]
[344285105,1733328589043,-167.995017,0.00025479,7]
[344285106,1733328589065,-500.0,0.00025479,7]
[344285107,1733328589089,-500.0,0.00025479,7]
[344285108,1733328589113,-167.995017,0.00025479,7]
[344285109,1733328589137,-167.995017,0.00025479,7]
[344285110,1733328589159,-500.0,0.00025479,7]
[344285111,1733328589184,-166.04240322,0.00025479,7]
[344285112,1733328589207,-500.0,0.00025479,7]
[344285113,1733328589233,-169.093,0.00025486,10]
[344285114,1733328589257,-227.81306453,0.00025585,2]
[344285115,1733328589283,-500.0,0.00025752,7]
[344285116,1733328589312,-608.1618861,0.00025752,7]
[344285117,1733328589337,-500.0,0.00025752,7]
[344285118,1733328589364,-3323.28,0.00025752,7]
[344285119,1733328589388,-637.68,0.00025752,7]
[344285120,1733328589415,-755.89,0.00025752,7]
[344285121,1733328589438,-500.0,0.00025753,7]
[344285122,1733328589472,-504.01186813,0.00025753,7]